bitfinex/quotes_SOLUSD_20220102
["timestamp","ask_amount","ask_price","bid_price","bid_amount"]
[1641111303033,1.61527603,175.05,174.99,17.0104]
[1641111303435,1.61527603,175.06,174.99,17.0104]
[1641111303733,2.95397603,175.07,174.99,17.0104]
[1641111304633,1.3387,175.07,174.99,17.0104]
[1641111305634,11.52347603,175.07,174.99,17.0104]
[1641111306034,9.9082,175.07,174.99,17.0104]
[1641111306734,1.3387,175.07,174.99,17.0104]
[1641111312137,1.3387,175.07,174.99,8.5704]
[1641111312338,9.7787,175.07,174.92,0.13621825]
[1641111312538,10.2787,175.07,174.92,0.13621825]
[1641111313038,10.2787,175.07,174.92,26.88281201]
[1641111313238,1.61527603,175.04,174.92,26.88281201]
[1641111313845,1.61527603,175.05,174.93,8.18]
[1641111314040,1.61527603,175.05,174.94,1.2332]
[1641111314639,1.61527603,175.05,174.94,1.4932]
[1641111314839,1.3387,175.07,174.94,1.2332]
[1641111314840,1.61527603,175.06,174.94,1.2332]
[1641111315039,8.5705,175.05,175.0,8.5701]
[1641111315441,8.5705,175.05,175.0,8.8301]
[1641111316943,8.5705,175.05,174.99,8.5705]
[1641111317243,8.5705,175.05,174.95,104.4594]
[1641111317445,10.18577603,175.05,174.95,75.8928]
[1641111318043,10.18577603,175.05,174.99,8.5705]
[1641111318643,10.18577603,175.05,174.99,8.8305]
[1641111318844,8.5705,175.05,174.99,8.8305]
[1641111320051,10.18577603,175.05,174.99,8.8305]
[1641111320650,8.5705,175.05,174.99,8.8305]
[1641111323351,10.18527603,175.06,174.99,40.46011287]
[1641111326273,1.61527603,175.06,174.99,40.46011287]
[1641111327575,1.61527603,175.09,174.99,40.46011287]
[1641111328376,2.94937603,175.1,175.0,1.2375]
[1641111328577,2.94937603,175.1,175.05,8.5675]
[1641111328779,1.61527603,175.1,175.05,8.5675]
[1641111329077,1.61527603,175.1,175.05,8.8275]
[1641111337196,1.61527603,175.1,175.07,8.5666]
[1641111337393,6.06044909,175.09,175.07,8.5666]
[1641111337593,6.06044909,175.09,175.07,8.8266]
[1641111338399,1.61527603,175.11,175.07,8.8266]
[1641111338595,1.61527603,175.11,175.07,0.26]
[1641111338998,1.61527603,175.11,175.06,8.8272]
[1641111339398,9.807,175.13,175.06,8.8272]
[1641111340399,9.307,175.13,175.06,8.8272]
[1641111340600,8.307,175.13,175.06,8.8272]
[1641111341805,8.567,175.13,175.06,8.8272]
[1641111342007,8.307,175.13,175.06,8.8272]
[1641111346038,1.61527603,175.12,175.06,8.8272]
[1641111349841,2.11527603,175.12,175.06,8.8272]
[1641111350540,2.11527603,175.12,175.09,0.13608989]
[1641111350739,6.06044909,175.11,175.07,5.70278989]
[1641111351142,6.06044909,175.11,175.07,5.96278989]
[1641111363550,6.06044909,175.11,175.02,29.8839]
[1641111363747,6.06044909,175.11,175.0,77.7127]
[1641111363947,1.3378,175.1,175.0,77.7127]
[1641111364447,1.5978,175.1,175.0,77.7127]
[1641111364648,3.21307603,175.1,175.0,77.7127]
[1641111365048,3.21307603,175.1,175.0,77.9727]
[1641111365349,8.5695,175.08,175.01,8.5692]
[1641111365549,8.8295,175.08,175.01,8.8292]
[1641111367349,1.61527603,175.09,175.01,8.8292]
[1641111367948,1.3378,175.1,175.01,8.8292]
[1641111368150,1.3378,175.1,175.01,9.7927]
[1641111368547,1.5978,175.1,175.01,9.7927]
[1641111368748,1.3378,175.1,175.01,9.7927]
[1641111369548,1.3378,175.1,175.01,10.0527]
[1641111370351,1.3378,175.1,175.01,16.1837]
[1641111372049,10.1663,175.1,175.01,16.1837]
[1641111373853,9.9063,175.1,175.01,16.1837]
[1641111374452,10.1663,175.1,175.01,15.9237]
[1641111375456,1.5978,175.1,175.01,15.9237]
[1641111375858,1.5978,175.1,175.01,16.1837]
[1641111376957,1.5978,175.1,175.01,15.9237]
[1641111377957,1.5978,175.1,175.01,16.1837]
[1641111378158,1.3378,175.1,175.01,16.1837]
[1641111378758,1.61527603,175.13,175.07,8.5651]
[1641111378960,1.61527603,175.13,175.07,14.6951]
[1641111379360,500.21714178,175.18,175.07,14.6951]
[1641111379560,500.21714178,175.18,175.07,15.9744]
[1641111379963,498.60186575,175.18,175.07,15.9744]
[1641111380462,78.02847603,175.2,175.07,15.9744]
[1641111380662,75.4132,175.2,175.07,15.9744]
[1641111381261,75.4132,175.2,175.07,92.8147]
[1641111382664,75.4132,175.2,175.08,9.60669368]
[1641111383064,75.4132,175.2,175.14,8.5633]
[1641111383263,0.26,175.2,175.1,29.07704394]
[1641111383667,19.11877603,175.22,175.1,29.33704394]
[1641111383865,1.61527603,175.21,175.1,29.33704394]
[1641111384065,1.87527603,175.21,175.1,29.33704394]
[1641111384267,2.37527603,175.21,175.1,29.33704394]
[1641111384766,0.76,175.21,175.1,29.33704394]
[1641111384966,8.94,175.22,175.1,29.33704394]
[1641111385592,8.5639,175.21,175.13,8.5638]
[1641111385992,9.3239,175.21,175.13,8.5638]
[1641111388293,0.76,175.21,175.13,8.5638]
[1641111388495,16.7434,175.23,175.13,8.8238]
[1641111388695,1.3403,175.24,175.13,13.9658]
[1641111389695,9.9027,175.24,175.13,13.9658]
[1641111389894,9.9027,175.24,175.15,8.5624]
[1641111390095,9.9027,175.24,175.15,8.8224]
[1641111390796,8.18,175.23,175.15,8.8224]
[1641111390999,17.0029,175.23,175.15,8.8224]
[1641111392498,17.0029,175.23,175.15,8.5624]
[1641111392699,17.5029,175.23,175.13,8.5633]
[1641111394400,17.2429,175.23,175.13,8.5633]
[1641111394599,16.7429,175.23,175.13,8.5633]
[1641111395001,17.2429,175.23,175.13,8.5633]
[1641111395603,16.7429,175.23,175.13,8.5633]
[1641111395806,17.5029,175.23,175.13,8.5633]
[1641111396605,16.7429,175.23,175.13,8.5633]
[1641111396804,16.7429,175.23,175.13,8.8233]
[1641111397005,16.7429,175.23,175.13,8.5633]
[1641111397605,16.7429,175.23,175.13,8.8233]
[1641111398006,1.61527603,175.2,175.13,8.8233]
[1641111398708,1.61527603,175.2,175.13,8.5633]
[1641111399106,1.87527603,175.2,175.13,8.8233]
[1641111399305,1.61527603,175.19,175.13,8.5633]
[1641111399506,1.61527603,175.19,175.13,8.8233]
[1641111400309,1.61527603,175.2,175.13,8.8233]
[1641111401510,1.87527603,175.2,175.13,8.5633]
[1641111402009,1.61527603,175.2,175.13,8.5633]
[1641111402810,1.61527603,175.2,175.13,8.8233]
[1641111403212,1.87527603,175.2,175.13,8.8233]
[1641111404013,1.61527603,175.19,175.13,8.8233]
[1641111404412,1.87527603,175.19,175.13,8.8233]
[1641111409416,0.26,175.19,175.13,8.8233]
[1641111409616,1.87527603,175.2,175.13,8.8233]
[1641111410416,1.61527603,175.2,175.13,8.5633]
[1641111411821,1.61527603,175.2,175.13,8.8233]
[1641111411822,1.87527603,175.2,175.13,8.8233]
[1641111413523,1.61527603,175.19,175.13,8.8233]
[1641111413923,1.87527603,175.19,175.13,8.8233]
[1641111422955,0.26,175.19,175.13,8.8233]
[1641111423356,1.87527603,175.2,175.13,8.8233]
[1641111423961,1.61527603,175.19,175.13,8.8233]
[1641111424359,1.87527603,175.19,175.13,8.8233]
[1641111426560,0.26,175.19,175.13,8.8233]
[1641111426964,1.87527603,175.2,175.13,8.8233]
[1641111427861,1.61527603,175.19,175.13,8.8233]
[1641111428068,1.87527603,175.19,175.13,8.8233]
[1641111430865,0.26,175.19,175.13,8.8233]
[1641111431066,1.87527603,175.2,175.13,8.8233]
[1641111435268,1.61527603,175.2,175.13,8.8233]
[1641111435468,1.61527603,175.21,175.13,8.8233]
[1641111435669,1.61527603,175.21,175.14,25.68189542]
[1641111436168,1.61527603,175.22,175.18,8.5613]
[1641111436569,1.87527603,175.22,175.18,8.5613]
[1641111436770,0.26,175.22,175.18,8.5613]
[1641111436970,1.87527603,175.23,175.18,8.5613]
[1641111439677,1.61527603,175.23,175.18,8.5613]
[1641111440675,1.61527603,175.24,175.18,8.5613]
[1641111441075,1.87527603,175.24,175.18,8.5613]
[1641111443678,1.61527603,175.23,175.18,8.5613]
[1641111444078,1.87527603,175.23,175.18,8.5613]
[1641111444280,0.26,175.23,175.18,8.5613]
[1641111444477,1.87527603,175.24,175.18,8.5613]
[1641111448802,0.26,175.24,175.18,8.5613]
[1641111449002,1.87527603,175.25,175.18,8.5613]
[1641111450003,1.61527603,175.25,175.18,8.8213]
[1641111450904,1.61527603,175.25,175.18,8.5613]
[1641111451509,1.87527603,175.25,175.18,8.5613]
[1641111454714,1.61527603,175.25,175.18,8.5613]
[1641111455614,1.61527603,175.26,175.18,8.5613]
[1641111455814,1.61527603,175.26,175.19,9.8338]
[1641111456015,1.87527603,175.26,175.19,9.8338]
[1641111459620,1.61527603,175.25,175.19,9.8338]
[1641111460023,1.87527603,175.25,175.19,9.8338]
[1641111460422,0.26,175.25,175.19,9.8338]
[1641111460623,1.87527603,175.26,175.19,9.8338]
[1641111463923,1.61527603,175.25,175.19,9.8338]
[1641111464123,1.87527603,175.25,175.19,9.8338]
[1641111469332,0.26,175.25,175.19,9.8338]
[1641111469532,1.87527603,175.26,175.19,9.8338]
[1641111471348,1.61527603,175.26,175.19,9.8338]
[1641111471553,1.61527603,175.26,175.19,10.0938]
[1641111472656,1.61527603,175.27,175.19,10.0938]
[1641111473461,1.87527603,175.27,175.19,10.0938]
[1641111475159,1.61527603,175.27,175.19,10.0938]
[1641111476561,1.87527603,175.27,175.19,10.0938]
[1641111476761,1.87527603,175.27,175.19,9.8338]
[1641111478267,1.61527603,175.26,175.19,9.8338]
[1641111478463,1.87527603,175.26,175.19,9.8338]
[1641111480465,1.87527603,175.26,175.19,10.0938]
[1641111480666,1.87527603,175.26,175.19,9.8338]
[1641111484770,1.61527603,175.26,175.19,9.8338]
[1641111485373,1.61527603,175.26,175.19,10.0938]
[1641111485775,1.61527603,175.26,175.19,11.52049368]
[1641111485977,1.61527603,175.28,175.19,11.52049368]
[1641111486177,1.61527603,175.28,175.19,10.0938]
[1641111486580,1.61527603,175.28,175.19,11.52049368]
[1641111486785,1.61527603,175.3,175.19,11.52049368]
[1641111488085,1.87527603,175.3,175.19,11.52049368]
[1641111488684,1.87527603,175.3,175.19,10.0938]
[1641111489287,2.37527603,175.3,175.19,10.0938]
[1641111489490,1.61527603,175.29,175.19,9.8338]
[1641111489887,1.87527603,175.29,175.19,9.8338]
[1641111490908,1.87527603,175.29,175.19,10.0938]
[1641111492813,0.26,175.29,175.19,10.0938]
[1641111493011,1.87527603,175.3,175.19,10.0938]
[1641111493413,0.26,175.3,175.19,10.0938]
[1641111493615,16.9989,175.31,175.19,10.0938]
[1641111494212,16.9989,175.31,175.19,11.52049368]
[1641111494414,8.44,175.31,175.19,11.52049368]
[1641111496717,8.18,175.31,175.19,11.52049368]
[1641111498116,8.44,175.31,175.19,10.0938]
[1641111499219,10.05527603,175.31,175.19,11.52049368]
[1641111501621,9.79527603,175.31,175.19,11.52049368]
[1641111502426,8.18,175.31,175.19,11.52049368]
[1641111504028,8.44,175.31,175.19,11.52049368]
[1641111504227,8.44,175.31,175.19,11.26049368]
[1641111505829,8.44,175.31,175.19,9.8338]
[1641111506028,10.05527603,175.31,175.19,10.0938]
[1641111507829,10.05527603,175.31,175.19,11.52049368]
[1641111508234,8.44,175.31,175.19,11.52049368]
[1641111508935,8.18,175.31,175.19,11.52049368]
[1641111509734,8.18,175.31,175.19,10.0938]
[1641111510336,8.44,175.31,175.19,10.0938]
[1641111510934,8.18,175.31,175.19,10.0938]
[1641111511335,8.18,175.31,175.2,1.42669368]
[1641111511538,8.18,175.31,175.21,23.76515865]
[1641111511738,8.18,175.31,175.25,8.5576]
[1641111512135,8.44,175.31,175.25,8.8176]
[1641111513336,8.18,175.31,175.25,8.8176]
[1641111514837,8.44,175.31,175.25,8.8176]
[1641111516641,8.18,175.31,175.25,8.8176]
[1641111522245,18.35287603,175.34,175.25,8.8176]
[1641111522446,18.61287603,175.34,175.25,8.8176]
[1641111523347,1.61527603,175.33,175.25,8.8176]
[1641111523548,1.87527603,175.33,175.25,8.8176]
[1641111524275,1.87527603,175.33,175.26,1.2812]
[1641111524473,1.87527603,175.33,175.26,10.0985]
[1641111526979,1.87527603,175.33,175.26,9.8385]
[1641111528083,1.61527603,175.32,175.26,9.8385]
[1641111528583,0.26,175.32,175.26,9.8385]
[1641111528984,1.87527603,175.33,175.26,9.8385]
[1641111529185,2.37527603,175.33,175.26,9.8385]
[1641111529388,1.61527603,175.32,175.26,9.8385]
[1641111529588,1.87527603,175.32,175.26,9.8385]
[1641111531588,0.26,175.32,175.26,9.8385]
[1641111531990,1.87527603,175.33,175.26,9.8385]
[1641111532588,0.26,175.33,175.26,9.8385]
[1641111532989,18.61287603,175.34,175.26,9.8385]
[1641111533189,1.61527603,175.33,175.26,9.8385]
[1641111533889,18.35287603,175.34,175.26,9.8385]
[1641111534892,18.61287603,175.34,175.26,9.8385]
[1641111535292,16.9976,175.34,175.26,9.8385]
[1641111535695,18.61287603,175.34,175.26,9.8385]
[1641111536192,16.9976,175.34,175.26,9.8385]
[1641111536592,8.44,175.34,175.26,9.8385]
[1641111537794,8.44,175.34,175.26,8.5573]
[1641111537994,10.05527603,175.34,175.26,8.5573]
[1641111539295,1.61527603,175.33,175.26,8.5573]
[1641111539497,1.87527603,175.33,175.26,8.5573]
[1641111539896,0.26,175.33,175.26,8.5573]
[1641111540299,10.05527603,175.34,175.26,8.5573]
[1641111541900,1.61527603,175.33,175.26,8.5573]
[1641111542103,1.87527603,175.33,175.26,8.5573]
[1641111542303,0.26,175.33,175.26,8.5573]
[1641111542503,10.55527603,175.34,175.26,8.5573]
[1641111545130,8.94,175.34,175.26,8.5573]
[1641111550640,8.44,175.34,175.26,8.5573]
[1641111554848,8.18,175.34,175.26,8.5573]
[1641111555046,8.18,175.34,175.26,8.8173]
[1641111556446,8.44,175.34,175.26,8.8173]
[1641111556846,1.61527603,175.36,175.26,8.8173]
[1641111557658,1.329,175.36,175.27,1.2774]
[1641111557846,1.329,175.36,175.28,30.06544679]
[1641111558048,1.329,175.36,175.28,30.32544679]
[1641111559050,1.589,175.36,175.28,30.32544679]
[1641111559253,1.589,175.36,175.29,1.2772]
[1641111559651,1.589,175.36,175.3,8.5555]
[1641111562052,1.329,175.36,175.3,8.8155]
[1641111563258,1.589,175.36,175.3,8.8155]
[1641111563658,1.61527603,175.38,175.3,8.8155]
[1641111564461,1.61527603,175.38,175.31,1.2343]
[1641111564661,1.61527603,175.38,175.32,8.5543]
[1641111565059,1.61527603,175.38,175.32,8.8143]
[1641111566965,8.18,175.39,175.32,8.8143]
[1641111568562,1.61527603,175.42,175.32,8.8143]
[1641111568563,9.79527603,175.42,175.32,8.8143]
[1641111568962,10.05527603,175.42,175.32,8.8143]
[1641111569363,10.05527603,175.42,175.35,8.5529]
[1641111569565,10.05527603,175.42,175.35,8.8129]
[1641111569764,9.79527603,175.42,175.35,8.8129]
[1641111571170,10.05527603,175.42,175.34,8.5534]
[1641111571569,10.55527603,175.42,175.34,8.5534]
[1641111571968,1.61527603,175.41,175.34,8.5534]
[1641111572369,1.87527603,175.41,175.34,8.5534]
[1641111572573,0.26,175.41,175.34,8.5534]
[1641111572971,18.60887603,175.42,175.34,8.5534]
[1641111574171,9.79527603,175.42,175.34,8.5534]
[1641111574571,1.61527603,175.4,175.34,8.5534]
[1641111574972,1.61527603,175.4,175.34,8.8134]
[1641111575576,1.87527603,175.4,175.34,8.8134]
[1641111576794,1.61527603,175.4,175.34,8.8134]
[1641111581499,1.87527603,175.4,175.34,8.5534]
[1641111582101,1.61527603,175.4,175.35,27.44939956]
[1641111582509,1.61527603,175.4,175.37,8.5514]
[1641111582709,1.61527603,175.41,175.37,8.5514]
[1641111582902,1.61527603,175.41,175.37,8.8114]
[1641111583504,1.61527603,175.43,175.37,8.8114]
[1641111583703,1.61527603,175.43,175.37,10.23809368]
[1641111584102,1.61527603,175.43,175.37,8.8114]
[1641111584503,1.61527603,175.46,175.37,8.8114]
[1641111585603,1.11527603,175.46,175.37,8.8114]
[1641111585807,1.11527603,175.46,175.41,8.5499]
[1641111586205,1.37527603,175.46,175.41,8.5499]
[1641111588108,0.26,175.46,175.41,8.5499]
[1641111588508,113.62045206,175.5,175.41,8.5499]
[1641111590311,17.4899,175.5,175.41,8.5499]
[1641111591313,17.2299,175.5,175.41,8.5499]
[1641111591512,17.2299,175.5,175.41,8.8099]
[1641111592113,8.18,175.53,175.42,23.01081881]
[1641111592315,8.18,175.53,175.44,8.5485]
[1641111593213,16.7285,175.53,175.42,1.3227]
[1641111593416,17.2285,175.53,175.41,8.5496]
[1641111594017,17.4885,175.53,175.42,1.3192]
[1641111595517,17.2285,175.53,175.42,1.3192]
[1641111595716,17.2285,175.53,175.42,10.1287]
[1641111596517,17.2285,175.53,175.42,9.8687]
[1641111597117,9.71100729,175.52,175.42,10.1287]
[1641111597517,10.21100729,175.52,175.42,10.1287]
[1641111597717,0.5,175.52,175.42,10.1287]
[1641111598120,20.45905206,175.53,175.42,10.1287]
[1641111598318,20.71905206,175.53,175.42,10.1287]
[1641111599719,6.48025295,175.52,175.42,9.8687]
[1641111599918,6.98025295,175.52,175.42,9.8687]
[1641111600122,7.24025295,175.52,175.42,10.1287]
[1641111600320,7.24025295,175.52,175.42,9.8687]
[1641111601223,0.76,175.52,175.42,9.8687]
[1641111601421,0.26,175.52,175.42,9.8687]
[1641111601620,20.71905206,175.53,175.42,9.8687]
[1641111602129,11.91055206,175.53,175.42,10.1287]
[1641111602522,11.41055206,175.53,175.42,10.1287]
[1641111602747,8.18,175.53,175.42,10.1287]
[1641111604551,8.44,175.53,175.42,10.1287]
[1641111605750,8.94,175.53,175.42,10.1287]
[1641111606551,8.68,175.53,175.42,10.1287]
[1641111607954,8.94,175.53,175.42,10.1287]
[1641111608152,8.94,175.53,175.42,9.8687]
[1641111608552,12.17055206,175.53,175.42,9.8687]
[1641111609953,8.94,175.53,175.42,9.8687]
[1641111614061,8.94,175.53,175.42,10.1287]
[1641111614260,8.68,175.53,175.42,10.1287]
[1641111615559,8.94,175.53,175.42,10.1287]
[1641111616667,8.68,175.53,175.42,10.1287]
[1641111617962,8.94,175.53,175.42,10.1287]
[1641111618763,8.44,175.53,175.42,10.1287]
[1641111619264,0.76,175.53,175.42,10.1287]
[1641111619663,91.17885206,175.55,175.42,10.1287]
[1641111619866,91.17885206,175.55,175.42,84.678]
[1641111623469,82.63135206,175.55,175.42,84.678]
[1641111624267,82.13135206,175.55,175.42,84.678]
[1641111625873,78.9008,175.55,175.42,84.678]
[1641111627670,82.13135206,175.55,175.42,84.678]
[1641111628072,78.9008,175.55,175.42,84.678]
[1641111629775,78.6408,175.55,175.49,8.5461]
[1641111629972,4.51235206,175.56,175.49,8.5461]
[1641111630372,1.2818,175.56,175.49,8.5461]
[1641111630975,1.5418,175.56,175.49,8.5461]
[1641111631574,1.2818,175.56,175.49,8.5461]
[1641111632478,3.23055206,175.58,175.49,8.8061]
[1641111633078,4.55895206,175.59,175.49,8.8061]
[1641111633277,5.05895206,175.59,175.49,8.8061]
[1641111633477,6.47818306,175.58,175.49,8.8061]
[1641111633977,6.73818306,175.58,175.49,8.8061]
[1641111634176,6.23818306,175.58,175.49,8.8061]
[1641111635180,0.26,175.58,175.49,8.8061]
[1641111635581,3.23055206,175.58,175.49,8.8061]
[1641111635781,3.49055206,175.58,175.49,8.8061]
[1641111636081,3.49055206,175.58,175.51,8.545]
[1641111636512,0.26,175.58,175.51,8.545]
[1641111636715,4.81895206,175.59,175.51,8.545]
[1641111637114,4.81895206,175.59,175.51,8.805]
[1641111637315,1.5884,175.59,175.51,8.805]
[1641111637618,1.5884,175.59,175.51,38.0038869]
[1641111637813,1.5884,175.59,175.51,37.7438869]
[1641111638014,1.5884,175.59,175.51,8.805]
[1641111638415,1.5884,175.59,175.51,8.545]
[1641111639015,1.5884,175.59,175.51,8.805]
[1641111639517,1.5884,175.59,175.51,8.545]
[1641111640917,1.3284,175.59,175.51,8.545]
[1641111642117,1.5884,175.59,175.51,8.545]
[1641111642317,10.134,175.59,175.51,8.545]
[1641111643727,9.874,175.59,175.51,8.545]
[1641111643921,1.3284,175.59,175.51,8.805]
[1641111644124,78.13065206,175.6,175.51,8.805]
[1641111644322,3.23055206,175.6,175.51,8.805]
[1641111644924,3.23055206,175.61,175.51,8.805]
[1641111645324,3.73055206,175.61,175.51,8.805]
[1641111645526,3.99055206,175.61,175.51,8.805]
[1641111646324,3.73055206,175.61,175.51,8.805]
[1641111646528,3.23055206,175.61,175.51,8.805]
[1641111646726,3.73055206,175.61,175.51,8.805]
[1641111646927,0.5,175.61,175.52,1.2979]
[1641111647128,0.5,175.61,175.54,8.5434]
[1641111647329,1.8325,175.63,175.54,8.5434]
[1641111647526,5.32305206,175.63,175.54,8.5434]
[1641111647928,13.86685206,175.63,175.54,8.5434]
[1641111648528,13.36685206,175.63,175.54,8.5434]
[1641111650029,11.77435206,175.63,175.54,8.5434]
[1641111650230,3.23055206,175.63,175.54,8.5434]
[1641111650432,3.23055206,175.63,175.54,8.8034]
[1641111650633,3.23055206,175.63,175.54,8.5434]
[1641111650830,3.23055206,175.64,175.54,8.8034]
[1641111651230,3.73055206,175.64,175.54,8.8034]
[1641111651631,3.23055206,175.63,175.54,8.5434]
[1641111652035,3.49055206,175.63,175.54,8.5434]
[1641111652233,0.26,175.63,175.54,8.5434]
[1641111652533,9.3034,175.64,175.54,8.5434]
[1641111653333,9.0434,175.64,175.54,8.5434]
[1641111653533,0.5,175.64,175.54,8.8034]
[1641111653936,8.68,175.65,175.54,8.8034]
[1641111654637,8.94,175.65,175.54,8.5434]
[1641111655664,17.483,175.65,175.54,8.5434]
[1641111657163,3.23055206,175.63,175.54,8.5434]
[1641111657563,3.49055206,175.63,175.54,8.5434]
[1641111658065,0.26,175.63,175.54,8.5434]
[1641111658465,3.99055206,175.64,175.54,8.5434]
[1641111659067,3.49055206,175.64,175.54,8.5434]
[1641111659669,3.23055206,175.64,175.54,8.5434]
[1641111659969,3.23055206,175.63,175.54,8.8034]
[1641111660573,3.23055206,175.64,175.54,8.8034]
[1641111660774,3.23055206,175.64,175.55,1.2852]
[1641111660970,3.23055206,175.64,175.57,8.5422]
[1641111660971,3.49055206,175.64,175.57,8.5422]
[1641111661171,3.23055206,175.64,175.57,8.5422]
[1641111661572,3.23055206,175.64,175.55,1.2852]
[1641111661972,3.23055206,175.64,175.55,9.828]
[1641111662173,3.23055206,175.63,175.55,9.828]
[1641111662577,3.49055206,175.63,175.55,9.828]
[1641111666877,3.49055206,175.63,175.55,8.5428]
[1641111667878,3.99055206,175.63,175.55,8.5428]
[1641111668079,3.49055206,175.63,175.55,8.5428]
[1641111668280,3.23055206,175.62,175.55,8.5428]
[1641111668479,3.49055206,175.62,175.55,8.5428]
[1641111668879,0.26,175.62,175.55,8.5428]
[1641111669084,3.23055206,175.63,175.55,8.5428]
[1641111670083,11.77365206,175.64,175.55,8.5428]
[1641111670483,12.03365206,175.64,175.55,8.5428]
[1641111671284,11.77365206,175.64,175.55,8.5428]
[1641111671484,11.77365206,175.64,175.55,8.8028]
[1641111671685,3.23055206,175.64,175.55,8.8028]
[1641111671884,3.23055206,175.64,175.55,8.5428]
[1641111672084,3.23055206,175.64,175.55,8.8028]
[1641111672286,11.41055206,175.65,175.55,8.8028]
[1641111672486,12.17055206,175.65,175.55,8.8028]
[1641111673086,11.41055206,175.65,175.55,8.8028]
[1641111673289,3.23055206,175.65,175.55,10.22949368]
[1641111673490,3.23055206,175.65,175.56,8.18]
[1641111673787,3.23055206,175.64,175.6,8.5401]
[1641111674415,3.23055206,175.69,175.6,8.5401]
[1641111674616,3.99055206,175.69,175.6,8.5401]
[1641111675719,12.53145206,175.69,175.6,8.5401]
[1641111676317,12.53145206,175.69,175.59,8.5413]
[1641111676518,3.23055206,175.68,175.59,8.5413]
[1641111676718,11.77165206,175.68,175.59,8.5413]
[1641111676918,12.53165206,175.68,175.59,8.5413]
[1641111677517,12.53165206,175.68,175.58,8.5417]
[1641111677719,9.3011,175.68,175.58,8.5417]
[1641111678920,9.3011,175.68,175.59,9.8127]
[1641111680622,9.3011,175.68,175.59,8.5413]
[1641111681626,9.3011,175.68,175.57,74.3889]
[1641111681627,9.3011,175.68,175.58,8.5418]
[1641111681925,3.23055206,175.67,175.58,8.5418]
[1641111682124,12.03225206,175.67,175.58,8.5418]
[1641111682326,12.53225206,175.67,175.58,8.5418]
[1641111683125,12.53225206,175.67,175.58,9.7757]
[1641111684029,9.3017,175.67,175.58,9.7757]
[1641111684628,12.53225206,175.67,175.58,9.7757]
[1641111686229,9.3017,175.67,175.58,9.7757]
[1641111686830,12.53225206,175.67,175.58,9.7757]
[1641111688230,9.3017,175.67,175.58,9.7757]
[1641111691737,0.76,175.67,175.58,9.7757]
[1641111691940,0.26,175.67,175.58,9.7757]
[1641111692135,12.53155206,175.68,175.58,9.7757]
[1641111693539,9.301,175.68,175.58,9.7757]
[1641111694039,9.041,175.68,175.58,9.7757]
[1641111694240,0.5,175.68,175.58,10.0357]
[1641111694438,3.73055206,175.69,175.58,10.0357]
[1641111695842,3.23055206,175.7,175.58,11.46239368]
[1641111696448,369.49528187,175.71,175.58,11.46239368]
[1641111697142,369.75528187,175.71,175.58,11.46239368]
[1641111697344,0.26,175.71,175.58,11.46239368]
[1641111697546,8.44,175.72,175.58,11.46239368]
[1641111697744,8.94,175.72,175.58,11.46239368]
[1641111697946,12.17055206,175.72,175.58,10.0357]
[1641111698147,20.70985206,175.72,175.58,10.0357]
[1641111698945,3.23055206,175.71,175.58,10.0357]
[1641111699449,3.99055206,175.71,175.58,10.0357]
[1641111700269,0.76,175.71,175.58,10.0357]
[1641111700471,20.70985206,175.72,175.58,10.0357]
[1641111702171,3.23055206,175.71,175.58,10.0357]
[1641111702372,3.73055206,175.71,175.58,10.0357]
[1641111702572,3.99055206,175.71,175.58,10.0357]
[1641111703374,0.76,175.71,175.58,10.0357]
[1641111703573,20.70985206,175.72,175.58,10.0357]
[1641111704373,12.17055206,175.72,175.58,11.46239368]
[1641111705576,12.17055206,175.72,175.58,19.64239368]
[1641111705979,1.61683832,175.68,175.58,19.64239368]
[1641111706379,1.87683832,175.68,175.58,19.64239368]
[1641111710480,1.61683832,175.68,175.58,19.64239368]